[Event "*** SCC Grand Prix: Titled Tuesday Blitz"]
[Site "Chess.com"]
[Date "2020.07.21"]
[Round "6"]
[White "JesseKraai"]
[Black "kirillshevchenko"]
[Result "0-1"]
[WhiteElo "2518"]
[BlackElo "2903"]
[TimeControl "180+1"]
[EndTime "11:07:05 PDT"]
[Termination "kirillshevchenko won on time"]

1. Nf3 {[%clk 0:03:00.9]} 1... Nf6 {[%clk 0:02:58]} 2. c4 {[%clk 0:02:59.7]}
2... g6 {[%clk 0:02:58.4]} 3. Nc3 {[%clk 0:02:59.4]} 3... Bg7 {[%clk 0:02:59]}
4. e4 {[%clk 0:02:59.8]} 4... d6 {[%clk 0:02:59.6]} 5. d4 {[%clk 0:03:00.1]}
5... O-O {[%clk 0:03:00.3]} 6. Be2 {[%clk 0:03:00.4]} 6... e5 {[%clk 0:03:00.8]}
7. d5 {[%clk 0:03:00.8]} 7... a5 {[%clk 0:03:00.1]} 8. Bg5 {[%clk 0:03:00.6]}
8... Na6 {[%clk 0:02:59.5]} 9. Nd2 {[%clk 0:03:00.4]} 9... h6 {[%clk 0:02:56.4]}
10. Be3 {[%clk 0:02:59.7]} 10... Nd7 {[%clk 0:02:48.7]} 11. O-O {[%clk
0:02:59.2]} 11... Ndc5 {[%clk 0:02:39.5]} 12. b3 {[%clk 0:02:54.9]} 12... f5
{[%clk 0:02:36.9]} 13. f3 {[%clk 0:02:54.4]} 13... f4 {[%clk 0:02:08.2]} 14. Bf2
{[%clk 0:02:54.5]} 14... Nb4 {[%clk 0:02:07.5]} 15. Qb1 {[%clk 0:02:44.2]} 15...
b6 {[%clk 0:01:48.7]} 16. a3 {[%clk 0:02:42.6]} 16... Nba6 {[%clk 0:01:49.3]}
17. b4 {[%clk 0:02:42.1]} 17... Nb7 {[%clk 0:01:45.7]} 18. Nb5 {[%clk
0:01:54.5]} 18... Bd7 {[%clk 0:01:36.8]} 19. Nb3 {[%clk 0:01:32.9]} 19... axb4
{[%clk 0:01:17.3]} 20. axb4 {[%clk 0:01:32.3]} 20... Nxb4 {[%clk 0:01:18.2]} 21.
Rxa8 {[%clk 0:01:29.5]} 21... Qxa8 {[%clk 0:01:19.1]} 22. Nxc7 {[%clk
0:01:29.7]} 22... Qa3 {[%clk 0:01:19.7]} 23. Bxb6 {[%clk 0:01:21.9]} 23... Ba4
{[%clk 0:01:07.9]} 24. Na5 {[%clk 0:01:06.5]} 24... Nc5 {[%clk 0:01:05.4]} 25.
Bd1 {[%clk 0:00:40]} 25... Bxd1 {[%clk 0:00:46.9]} 26. Rxd1 {[%clk 0:00:33.3]}
26... Qe3+ {[%clk 0:00:46.5]} 27. Kh1 {[%clk 0:00:27.6]} 27... Nbd3 {[%clk
0:00:46.6]} 28. Rxd3 {[%clk 0:00:24.5]} 28... Qxd3 {[%clk 0:00:45.7]} 29. Qxd3
{[%clk 0:00:24.2]} 29... Nxd3 {[%clk 0:00:46.6]} 30. Nc6 {[%clk 0:00:20.8]}
30... Bf6 {[%clk 0:00:43.5]} 31. g3 {[%clk 0:00:18.3]} 31... g5 {[%clk
0:00:41.7]} 32. Kg2 {[%clk 0:00:18.6]} 32... g4 {[%clk 0:00:40.2]} 33. fxg4
{[%clk 0:00:17.2]} 33... Bg5 {[%clk 0:00:37.3]} 34. h4 {[%clk 0:00:16.7]} 34...
f3+ {[%clk 0:00:34.7]} 35. Kf1 {[%clk 0:00:16.9]} 35... Bd2 {[%clk 0:00:26.7]}
36. Ne7+ {[%clk 0:00:07.5]} 36... Kh7 {[%clk 0:00:23.2]} 37. Nc6 {[%clk
0:00:06]} 37... Bc3 {[%clk 0:00:20.4]} 38. Nb5 {[%clk 0:00:04.6]} 38... Ra8
{[%clk 0:00:19.4]} 39. Ba7 {[%clk 0:00:04.2]} 39... Bd2 {[%clk 0:00:14.2]} 40.
Nxd6 {[%clk 0:00:03.4]} 40... Be3 {[%clk 0:00:14.6]} 41. Nf5 {[%clk 0:00:03.2]}
41... Bxa7 {[%clk 0:00:14.3]} 0-1

[Event "*** SCC Grand Prix: Titled Tuesday Blitz"]
[Site "Chess.com"]
[Date "2020.07.21"]
[Round "6"]
[White "HElissalt"]
[Black "ajian"]
[Result "0-1"]
[WhiteElo "2269"]
[BlackElo "2424"]
[TimeControl "180+1"]
[EndTime "11:07:05 PDT"]
[Termination "ajian won by resignation"]

1. c4 {[%clk 0:03:00.9]} 1... Nf6 {[%clk 0:02:57.2]} 2. Nc3 {[%clk 0:03:00]}
2... c5 {[%clk 0:02:57]} 3. g3 {[%clk 0:02:51.3]} 3... e6 {[%clk 0:02:55]} 4.
Nf3 {[%clk 0:02:45]} 4... b6 {[%clk 0:02:55]} 5. Bg2 {[%clk 0:02:44.4]} 5... Bb7
{[%clk 0:02:55.1]} 6. O-O {[%clk 0:02:44.4]} 6... Be7 {[%clk 0:02:54.8]} 7. d4
{[%clk 0:02:43.5]} 7... cxd4 {[%clk 0:02:54.6]} 8. Qxd4 {[%clk 0:02:43.6]} 8...
d6 {[%clk 0:02:54.4]} 9. Rd1 {[%clk 0:02:31.4]} 9... a6 {[%clk 0:02:51.9]} 10.
Bg5 {[%clk 0:01:53.6]} 10... Nbd7 {[%clk 0:02:44.4]} 11. e4 {[%clk 0:01:26.2]}
11... Qc7 {[%clk 0:02:37.3]} 12. Rac1 {[%clk 0:01:19.6]} 12... O-O {[%clk
0:02:29.4]} 13. b3 {[%clk 0:01:14.7]} 13... Rfd8 {[%clk 0:02:18]} 14. h3 {[%clk
0:01:05.5]} 14... h6 {[%clk 0:02:04.4]} 15. Bxf6 {[%clk 0:01:01.5]} 15... Nxf6
{[%clk 0:02:02.3]} 16. Qe3 {[%clk 0:01:01.4]} 16... Nd7 {[%clk 0:01:56.3]} 17.
h4 {[%clk 0:00:48.1]} 17... Bf6 {[%clk 0:01:48.4]} 18. Ne2 {[%clk 0:00:39.4]}
18... Nc5 {[%clk 0:01:31.2]} 19. Nfd4 {[%clk 0:00:31.9]} 19... Qe7 {[%clk
0:01:05.4]} 20. f4 {[%clk 0:00:28.5]} 20... e5 {[%clk 0:00:54.5]} 21. Nf5 {[%clk
0:00:27.5]} 21... Qf8 {[%clk 0:00:54.9]} 22. fxe5 {[%clk 0:00:21.5]} 22... dxe5
{[%clk 0:00:47.9]} 23. Nc3 {[%clk 0:00:19.4]} 23... Kh7 {[%clk 0:00:19.4]} 24.
Qe2 {[%clk 0:00:19.4]} 24... g6 {[%clk 0:00:17.8]} 25. Ne3 {[%clk 0:00:19.7]}
25... Ne6 {[%clk 0:00:14.9]} 26. Ncd5 {[%clk 0:00:19.3]} 26... Be7 {[%clk
0:00:13]} 27. Nxe7 {[%clk 0:00:18.8]} 27... Qxe7 {[%clk 0:00:13]} 28. Nd5 {[%clk
0:00:18.6]} 28... Bxd5 {[%clk 0:00:12.9]} 29. exd5 {[%clk 0:00:18.5]} 29... Nd4
{[%clk 0:00:12.7]} 30. Rxd4 {[%clk 0:00:18.6]} 30... Qc5 {[%clk 0:00:12.9]} 31.
Qf2 {[%clk 0:00:17.5]} 31... Qxd4 {[%clk 0:00:11.5]} 32. Qxd4 {[%clk 0:00:13.8]}
32... exd4 {[%clk 0:00:12.4]} 33. Rd1 {[%clk 0:00:14.3]} 33... Re8 {[%clk
0:00:06.8]} 34. Rxd4 {[%clk 0:00:14.9]} 34... Re2 {[%clk 0:00:07.2]} 35. d6
{[%clk 0:00:15.2]} 35... Rd8 {[%clk 0:00:06.9]} 36. d7 {[%clk 0:00:15.4]} 36...
Kg7 {[%clk 0:00:06.4]} 37. Bc6 {[%clk 0:00:15.5]} 37... Kf6 {[%clk 0:00:03.1]}
38. Kf1 {[%clk 0:00:15.8]} 38... Re3 {[%clk 0:00:02.7]} 39. Kf2 {[%clk
0:00:15.4]} 39... Re6 {[%clk 0:00:03]} 40. b4 {[%clk 0:00:13.9]} 40... Rxc6
{[%clk 0:00:02.7]} 0-1

[Event "*** SCC Grand Prix: Titled Tuesday Blitz"]
[Site "Chess.com"]
[Date "2020.07.21"]
[Round "6"]
[White "aNaartjieZA"]
[Black "olksuna"]
[Result "1/2-1/2"]
[WhiteElo "2459"]
[BlackElo "2622"]
[TimeControl "180+1"]
[EndTime "11:07:06 PDT"]
[Termination "Game drawn by repetition"]

1. e4 {[%clk 0:03:00.9]} 1... d6 {[%clk 0:02:59.8]} 2. Nf3 {[%clk 0:03:00.6]}
2... Nf6 {[%clk 0:02:59.7]} 3. d3 {[%clk 0:03:00.6]} 3... c5 {[%clk 0:02:57.6]}
4. g3 {[%clk 0:03:00.8]} 4... Nc6 {[%clk 0:02:57.9]} 5. Bg2 {[%clk 0:03:01]}
5... g6 {[%clk 0:02:58.8]} 6. O-O {[%clk 0:03:01.2]} 6... Bg7 {[%clk 0:02:59.4]}
7. Re1 {[%clk 0:03:01.8]} 7... O-O {[%clk 0:02:59.8]} 8. c3 {[%clk 0:03:02.3]}
8... e5 {[%clk 0:02:52.5]} 9. a3 {[%clk 0:03:02.2]} 9... b6 {[%clk 0:02:46.9]}
10. b4 {[%clk 0:03:01.7]} 10... h6 {[%clk 0:02:46.3]} 11. Nbd2 {[%clk
0:03:00.8]} 11... Be6 {[%clk 0:02:45.3]} 12. Bb2 {[%clk 0:03:00.7]} 12... Qd7
{[%clk 0:02:43]} 13. b5 {[%clk 0:03:00.3]} 13... Na5 {[%clk 0:02:42.6]} 14. a4
{[%clk 0:03:00.5]} 14... Rac8 {[%clk 0:02:38.2]} 15. d4 {[%clk 0:02:57.7]} 15...
cxd4 {[%clk 0:02:34.9]} 16. cxd4 {[%clk 0:02:57.6]} 16... exd4 {[%clk
0:02:28.8]} 17. Bxd4 {[%clk 0:02:49.5]} 17... Rfe8 {[%clk 0:02:24.1]} 18. Qb1
{[%clk 0:02:25.4]} 18... Nc4 {[%clk 0:01:58.6]} 19. Nxc4 {[%clk 0:02:23.5]}
19... Bxc4 {[%clk 0:01:52.8]} 20. Qb2 {[%clk 0:02:21.4]} 20... Nh5 {[%clk
0:01:52.9]} 21. Bxg7 {[%clk 0:02:20.2]} 21... Nxg7 {[%clk 0:01:53.8]} 22. Rad1
{[%clk 0:02:19.6]} 22... Qe6 {[%clk 0:01:27.8]} 23. Nd4 {[%clk 0:02:12.6]} 23...
Qf6 {[%clk 0:01:27.5]} 24. Qb4 {[%clk 0:02:05.4]} 24... d5 {[%clk 0:01:23.5]}
25. Nc6 {[%clk 0:02:03.7]} 25... a5 {[%clk 0:01:07.4]} 26. Qa3 {[%clk
0:01:38.8]} 26... dxe4 {[%clk 0:01:06]} 27. Rxe4 {[%clk 0:01:35.5]} 27... Be6
{[%clk 0:00:46.2]} 28. Rf4 {[%clk 0:01:24.2]} 28... Nf5 {[%clk 0:00:38.4]} 29.
g4 {[%clk 0:01:15.6]} 29... Qg5 {[%clk 0:00:34.8]} 30. gxf5 {[%clk 0:01:15.7]}
30... Qxf4 {[%clk 0:00:27.8]} 31. fxe6 {[%clk 0:01:15.6]} 31... Rxe6 {[%clk
0:00:15]} 32. Ne7+ {[%clk 0:01:14.1]} 32... Rxe7 {[%clk 0:00:15.5]} 33. Qxe7
{[%clk 0:01:14]} 33... Qxa4 {[%clk 0:00:15.6]} 34. Rd8+ {[%clk 0:01:13.3]} 34...
Rxd8 {[%clk 0:00:15]} 35. Qxd8+ {[%clk 0:01:13.5]} 35... Kg7 {[%clk 0:00:15.9]}
36. Qd5 {[%clk 0:00:55.2]} 36... Qa1+ {[%clk 0:00:12.6]} 37. Bf1 {[%clk
0:00:55.2]} 37... a4 {[%clk 0:00:13.4]} 38. Kg2 {[%clk 0:00:55.1]} 38... a3
{[%clk 0:00:13.6]} 39. Bc4 {[%clk 0:00:55.2]} 39... Qf6 {[%clk 0:00:12.6]} 40.
Kg3 {[%clk 0:00:51]} 40... h5 {[%clk 0:00:12.1]} 41. f4 {[%clk 0:00:48.8]} 41...
Qc3+ {[%clk 0:00:10.6]} 42. Kg2 {[%clk 0:00:48.3]} 42... Qb2+ {[%clk 0:00:10.8]}
43. Kg3 {[%clk 0:00:41.1]} 43... Qc3+ {[%clk 0:00:11.1]} 44. Kg2 {[%clk
0:00:40.5]} 44... Qb2+ {[%clk 0:00:11.7]} 45. Kh3 {[%clk 0:00:37.7]} 45... Qc3+
{[%clk 0:00:11.6]} 46. Kh4 {[%clk 0:00:32.9]} 46... Qf6+ {[%clk 0:00:09.8]} 47.
Kg3 {[%clk 0:00:32.8]} 47... Qc3+ {[%clk 0:00:10]} 1/2-1/2

[Event "*** SCC Grand Prix: Titled Tuesday Blitz"]
[Site "Chess.com"]
[Date "2020.07.21"]
[Round "6"]
[White "CrushingKings"]
[Black "warmoatmeal"]
[Result "1-0"]
[WhiteElo "2526"]
[BlackElo "2355"]
[TimeControl "180+1"]
[EndTime "11:07:06 PDT"]
[Termination "CrushingKings won by checkmate"]

1. e4 {[%clk 0:03:00.9]} 1... c6 {[%clk 0:02:59.3]} 2. Nf3 {[%clk 0:03:01]} 2...
d5 {[%clk 0:02:59]} 3. Nc3 {[%clk 0:03:00.7]} 3... g6 {[%clk 0:02:59.2]} 4. d4
{[%clk 0:02:59.1]} 4... Bg7 {[%clk 0:02:49.2]} 5. h3 {[%clk 0:02:56.6]} 5...
dxe4 {[%clk 0:02:47.8]} 6. Nxe4 {[%clk 0:02:56.5]} 6... Nf6 {[%clk 0:02:48.7]}
7. Nxf6+ {[%clk 0:02:56.9]} 7... exf6 {[%clk 0:02:49.6]} 8. Be3 {[%clk
0:02:54.6]} 8... O-O {[%clk 0:02:49.6]} 9. Qd2 {[%clk 0:02:54.9]} 9... a5 {[%clk
0:02:48.9]} 10. Bh6 {[%clk 0:02:54.6]} 10... f5 {[%clk 0:02:48.2]} 11. O-O-O
{[%clk 0:02:51.3]} 11... Nd7 {[%clk 0:02:48]} 12. h4 {[%clk 0:02:51.1]} 12...
Nf6 {[%clk 0:02:47.8]} 13. Bd3 {[%clk 0:02:32.7]} 13... Be6 {[%clk 0:02:44.1]}
14. Kb1 {[%clk 0:02:32.3]} 14... b5 {[%clk 0:02:39.7]} 15. h5 {[%clk 0:02:08.1]}
15... Qd5 {[%clk 0:02:19]} 16. b3 {[%clk 0:01:57.5]} 16... a4 {[%clk 0:02:18.9]}
17. Bxg7 {[%clk 0:01:20.6]} 17... Kxg7 {[%clk 0:02:18.9]} 18. hxg6 {[%clk
0:01:21.5]} 18... fxg6 {[%clk 0:02:19.8]} 19. Qh6+ {[%clk 0:01:18.5]} 19... Kg8
{[%clk 0:02:15.9]} 20. Rde1 {[%clk 0:01:17.2]} 20... axb3 {[%clk 0:02:10.4]} 21.
axb3 {[%clk 0:01:10.2]} 21... Ra3 {[%clk 0:01:58.3]} 22. Re5 {[%clk 0:00:41.1]}
22... Rxb3+ {[%clk 0:01:47]} 23. Kc1 {[%clk 0:00:40.9]} 23... Qd6 {[%clk
0:00:56.9]} 24. cxb3 {[%clk 0:00:40.8]} 24... Ra8 {[%clk 0:00:48.7]} 25. Kd1
{[%clk 0:00:21.6]} 25... Bxb3+ {[%clk 0:00:46.5]} 26. Ke2 {[%clk 0:00:19.8]}
26... Ra2+ {[%clk 0:00:45.8]} 27. Kf1 {[%clk 0:00:19.7]} 27... Ra1+ {[%clk
0:00:44.4]} 28. Re1 {[%clk 0:00:16.6]} 28... Ra2 {[%clk 0:00:34.6]} 29. Qe3
{[%clk 0:00:13.1]} 29... Bf7 {[%clk 0:00:26.8]} 30. Ne5 {[%clk 0:00:09.3]} 30...
Bd5 {[%clk 0:00:20.8]} 31. f3 {[%clk 0:00:05.8]} 31... Qb4 {[%clk 0:00:18]} 32.
Kg1 {[%clk 0:00:05.2]} 32... f4 {[%clk 0:00:13.7]} 33. Qc1 {[%clk 0:00:03.3]}
33... Qb3 {[%clk 0:00:09.2]} 34. Kh2 {[%clk 0:00:04.2]} 34... Rb2 {[%clk
0:00:05.7]} 35. Qxf4 {[%clk 0:00:04.1]} 35... Ra2 {[%clk 0:00:03.8]} 36. Qxf6
{[%clk 0:00:03.8]} 36... Ra7 {[%clk 0:00:03.4]} 37. Nxg6 {[%clk 0:00:04]} 37...
hxg6 {[%clk 0:00:03.2]} 38. Re8+ {[%clk 0:00:04.6]} 38... Kh7 {[%clk 0:00:02.5]}
39. Rh8# {[%clk 0:00:05.5]} 1-0

[Event "*** SCC Grand Prix: Titled Tuesday Blitz"]
[Site "Chess.com"]
[Date "2020.07.21"]
[Round "6"]
[White "reutik"]
[Black "WildTricks"]
[Result "0-1"]
[WhiteElo "2318"]
[BlackElo "2502"]
[TimeControl "180+1"]
[EndTime "11:07:06 PDT"]
[Termination "WildTricks won on time"]

1. d4 {[%clk 0:03:00.9]} 1... Nf6 {[%clk 0:02:58.4]} 2. c4 {[%clk 0:03:01.1]}
2... e6 {[%clk 0:02:58.2]} 3. Nf3 {[%clk 0:03:00.9]} 3... a6 {[%clk 0:02:57.8]}
4. Nc3 {[%clk 0:03:00.1]} 4... d5 {[%clk 0:02:58]} 5. c5 {[%clk 0:02:53.4]} 5...
Ne4 {[%clk 0:02:57.1]} 6. e3 {[%clk 0:02:45]} 6... Nxc3 {[%clk 0:02:55.3]} 7.
bxc3 {[%clk 0:02:44.9]} 7... b6 {[%clk 0:02:56]} 8. cxb6 {[%clk 0:02:45]} 8...
cxb6 {[%clk 0:02:56.9]} 9. c4 {[%clk 0:02:44.7]} 9... dxc4 {[%clk 0:02:54]} 10.
Bxc4 {[%clk 0:02:43.8]} 10... Bb7 {[%clk 0:02:54.6]} 11. O-O {[%clk 0:02:42.2]}
11... Nd7 {[%clk 0:02:54.6]} 12. a4 {[%clk 0:02:38.1]} 12... Bd6 {[%clk
0:02:53.6]} 13. Ba3 {[%clk 0:02:34.7]} 13... Bxa3 {[%clk 0:02:49.5]} 14. Rxa3
{[%clk 0:02:34.7]} 14... O-O {[%clk 0:02:50.1]} 15. Qe2 {[%clk 0:02:31.7]} 15...
Qc7 {[%clk 0:02:45.9]} 16. Bd3 {[%clk 0:02:12.1]} 16... Rfc8 {[%clk 0:02:43.4]}
17. h3 {[%clk 0:02:10.9]} 17... Nf6 {[%clk 0:02:41.8]} 18. Rb3 {[%clk
0:02:01.3]} 18... Bd5 {[%clk 0:02:38]} 19. Rb4 {[%clk 0:01:51.5]} 19... Bxf3
{[%clk 0:02:11.2]} 20. gxf3 {[%clk 0:01:49.9]} 20... Nd5 {[%clk 0:02:08]} 21.
Rb3 {[%clk 0:01:44.9]} 21... a5 {[%clk 0:01:53.9]} 22. Be4 {[%clk 0:01:28.5]}
22... Rab8 {[%clk 0:01:41.5]} 23. Bxd5 {[%clk 0:01:24.7]} 23... exd5 {[%clk
0:01:42.4]} 24. Rfb1 {[%clk 0:01:22.3]} 24... Qd7 {[%clk 0:01:30.2]} 25. Kg2
{[%clk 0:00:40.7]} 25... Rc6 {[%clk 0:01:26.4]} 26. Rb5 {[%clk 0:00:18.6]} 26...
Rg6+ {[%clk 0:01:17.8]} 27. Kh2 {[%clk 0:00:18.5]} 27... Re8 {[%clk 0:01:14.7]}
28. f4 {[%clk 0:00:15]} 28... Rh6 {[%clk 0:01:06.6]} 29. Qf3 {[%clk 0:00:15.2]}
29... Ree6 {[%clk 0:00:58.7]} 30. Rxd5 {[%clk 0:00:09]} 30... Qe7 {[%clk
0:00:30.7]} 31. Rc1 {[%clk 0:00:08.1]} 31... g6 {[%clk 0:00:27.1]} 32. Rc8+
{[%clk 0:00:05.9]} 32... Kg7 {[%clk 0:00:27.2]} 33. Rdd8 {[%clk 0:00:05.9]}
33... Rh4 {[%clk 0:00:19.7]} 34. f5 {[%clk 0:00:04.9]} 34... Rf6 {[%clk
0:00:16.5]} 35. Qg3 {[%clk 0:00:03.5]} 35... Rh5 {[%clk 0:00:15.7]} 36. Rh8
{[%clk 0:00:02.1]} 36... Rfxf5 {[%clk 0:00:11.5]} 0-1

[Event "*** SCC Grand Prix: Titled Tuesday Blitz"]
[Site "Chess.com"]
[Date "2020.07.21"]
[Round "6"]
[White "GMHess"]
[Black "IwkooO"]
[Result "0-1"]
[WhiteElo "2770"]
[BlackElo "2635"]
[TimeControl "180+1"]
[EndTime "11:07:08 PDT"]
[Termination "IwkooO won by resignation"]

1. b3 {[%clk 0:03:00.9]} 1... Nf6 {[%clk 0:02:50.9]} 2. Bb2 {[%clk 0:03:01.8]}
2... g6 {[%clk 0:02:51.5]} 3. e3 {[%clk 0:03:01.3]} 3... Bg7 {[%clk 0:02:51.8]}
4. d3 {[%clk 0:03:02]} 4... O-O {[%clk 0:02:52.2]} 5. Nd2 {[%clk 0:03:02.6]}
5... d5 {[%clk 0:02:52.6]} 6. Ne2 {[%clk 0:03:03.2]} 6... c5 {[%clk 0:02:53]} 7.
h3 {[%clk 0:03:03.7]} 7... Nc6 {[%clk 0:02:53.5]} 8. g4 {[%clk 0:03:03.7]} 8...
e5 {[%clk 0:02:48.4]} 9. Bg2 {[%clk 0:03:03.7]} 9... b6 {[%clk 0:02:48]} 10. Ng3
{[%clk 0:02:58.7]} 10... Bb7 {[%clk 0:02:42.9]} 11. Qe2 {[%clk 0:02:57.2]} 11...
d4 {[%clk 0:02:35]} 12. e4 {[%clk 0:02:44.5]} 12... Ne8 {[%clk 0:02:34.9]} 13.
O-O-O {[%clk 0:02:43.7]} 13... Nc7 {[%clk 0:02:35.1]} 14. Rdg1 {[%clk
0:02:29.4]} 14... Ne6 {[%clk 0:02:34.9]} 15. Bf3 {[%clk 0:02:29]} 15... b5
{[%clk 0:02:35]} 16. h4 {[%clk 0:02:26.6]} 16... a5 {[%clk 0:02:33.6]} 17. g5
{[%clk 0:02:03.6]} 17... Ba6 {[%clk 0:02:27.6]} 18. Nf5 {[%clk 0:01:47.1]} 18...
Nf4 {[%clk 0:02:21]} 19. Qf1 {[%clk 0:01:32.9]} 19... c4 {[%clk 0:01:53.3]} 20.
dxc4 {[%clk 0:01:29.5]} 20... bxc4 {[%clk 0:01:54.2]} 21. Nxc4 {[%clk
0:01:28.8]} 21... Rc8 {[%clk 0:01:33.4]} 22. Nxg7 {[%clk 0:01:12.8]} 22... Kxg7
{[%clk 0:01:32.1]} 23. Kb1 {[%clk 0:00:47.1]} 23... Nb4 {[%clk 0:01:30.8]} 24.
Bd1 {[%clk 0:00:34.5]} 24... Bxc4 {[%clk 0:01:26.3]} 25. bxc4 {[%clk 0:00:34.2]}
25... Qb6 {[%clk 0:01:26.9]} 26. Rg3 {[%clk 0:00:08.9]} 26... Rb8 {[%clk
0:01:21.9]} 27. c5 {[%clk 0:00:07.6]} 27... Qxc5 {[%clk 0:01:20.5]} 28. a3
{[%clk 0:00:06.6]} 28... Nc6 {[%clk 0:01:12.3]} 29. h5 {[%clk 0:00:06.2]} 29...
a4 {[%clk 0:00:56.7]} 30. Qa6 {[%clk 0:00:06.2]} 30... d3 {[%clk 0:00:20.2]} 31.
Qxa4 {[%clk 0:00:04.9]} 31... Qc3 {[%clk 0:00:20.4]} 32. Qb3 {[%clk 0:00:04.3]}
32... Rxb3 {[%clk 0:00:20.3]} 33. cxb3 {[%clk 0:00:05.2]} 33... Qc5 {[%clk
0:00:17.8]} 34. Bg4 {[%clk 0:00:05.2]} 34... Rd8 {[%clk 0:00:17.3]} 35. Rc1
{[%clk 0:00:05.1]} 35... Qb5 {[%clk 0:00:17]} 36. a4 {[%clk 0:00:05]} 36... Qb6
{[%clk 0:00:14.7]} 37. Rgg1 {[%clk 0:00:04.4]} 37... Nd4 {[%clk 0:00:15]} 38.
Rc3 {[%clk 0:00:03.6]} 38... Nde2 {[%clk 0:00:15]} 39. Bxe2 {[%clk 0:00:03.1]}
39... Nxe2 {[%clk 0:00:15.5]} 40. Rc4 {[%clk 0:00:03]} 40... Nxg1 {[%clk
0:00:14.7]} 41. Bxe5+ {[%clk 0:00:03.6]} 41... Kg8 {[%clk 0:00:15.3]} 42. Ka2
{[%clk 0:00:03.4]} 42... d2 {[%clk 0:00:14.9]} 43. Bc7 {[%clk 0:00:04.1]} 43...
Qxc7 {[%clk 0:00:15.2]} 44. Rxc7 {[%clk 0:00:04.4]} 44... d1=Q {[%clk
0:00:15.8]} 0-1

[Event "*** SCC Grand Prix: Titled Tuesday Blitz"]
[Site "Chess.com"]
[Date "2020.07.21"]
[Round "6"]
[White "talman67"]
[Black "Iljushin_Alexey"]
[Result "0-1"]
[WhiteElo "2492"]
[BlackElo "2695"]
[TimeControl "180+1"]
[EndTime "11:07:12 PDT"]
[Termination "Iljushin_Alexey won on time"]

1. e4 {[%clk 0:02:39.6]} 1... c6 {[%clk 0:03:00]} 2. d4 {[%clk 0:02:39.2]} 2...
d5 {[%clk 0:03:00.1]} 3. e5 {[%clk 0:02:39.5]} 3... Bf5 {[%clk 0:02:59.8]} 4.
Nf3 {[%clk 0:02:39]} 4... e6 {[%clk 0:03:00]} 5. Be2 {[%clk 0:02:39.6]} 5... Nd7
{[%clk 0:03:00.1]} 6. O-O {[%clk 0:02:39.9]} 6... Bg6 {[%clk 0:03:00.7]} 7. Nbd2
{[%clk 0:02:40]} 7... Nh6 {[%clk 0:03:00.8]} 8. Nb3 {[%clk 0:02:40.5]} 8... Nf5
{[%clk 0:03:00.9]} 9. Bd2 {[%clk 0:02:39.4]} 9... h5 {[%clk 0:03:00.2]} 10. a4
{[%clk 0:02:35.8]} 10... h4 {[%clk 0:02:55.6]} 11. h3 {[%clk 0:02:34.5]} 11...
a6 {[%clk 0:02:53.1]} 12. a5 {[%clk 0:02:33.9]} 12... Be7 {[%clk 0:02:50.8]} 13.
c4 {[%clk 0:02:33.8]} 13... dxc4 {[%clk 0:02:50.7]} 14. Bxc4 {[%clk 0:02:34.7]}
14... O-O {[%clk 0:02:49.7]} 15. Qe2 {[%clk 0:02:34.5]} 15... Rc8 {[%clk
0:02:48.2]} 16. Rfd1 {[%clk 0:02:28.6]} 16... Bh5 {[%clk 0:02:45.8]} 17. Qe4
{[%clk 0:02:25.8]} 17... Re8 {[%clk 0:02:43.1]} 18. Bf4 {[%clk 0:02:17]} 18...
Nf8 {[%clk 0:02:40.6]} 19. Rd3 {[%clk 0:02:07.1]} 19... Ng6 {[%clk 0:02:38.5]}
20. Bh2 {[%clk 0:02:03.3]} 20... Bf8 {[%clk 0:02:35.6]} 21. Rad1 {[%clk
0:02:01.1]} 21... Bxf3 {[%clk 0:02:23.9]} 22. Rxf3 {[%clk 0:01:57.9]} 22... Nge7
{[%clk 0:02:18.7]} 23. Nc5 {[%clk 0:01:24.9]} 23... Nd5 {[%clk 0:02:18.1]} 24.
Nxb7 {[%clk 0:01:21.9]} 24... Qc7 {[%clk 0:02:18.6]} 25. Nc5 {[%clk 0:01:08.9]}
25... Bxc5 {[%clk 0:02:16.8]} 26. dxc5 {[%clk 0:01:07.2]} 26... Qxa5 {[%clk
0:02:16]} 27. Ra3 {[%clk 0:00:59.3]} 27... Qxc5 {[%clk 0:02:13.9]} 28. Rxa6
{[%clk 0:00:58.8]} 28... Ra8 {[%clk 0:02:09]} 29. Rxa8 {[%clk 0:00:54.8]} 29...
Rxa8 {[%clk 0:02:08.6]} 30. Bf4 {[%clk 0:00:42.5]} 30... Rb8 {[%clk 0:02:06.3]}
31. Bc1 {[%clk 0:00:39.6]} 31... Rb4 {[%clk 0:02:02.5]} 32. b3 {[%clk
0:00:39.7]} 32... Rb8 {[%clk 0:02:02.3]} 33. Qg4 {[%clk 0:00:36.6]} 33... Ra8
{[%clk 0:01:56.5]} 34. Bg5 {[%clk 0:00:33.6]} 34... Ra2 {[%clk 0:01:40.9]} 35.
Bxh4 {[%clk 0:00:32.4]} 35... Qa7 {[%clk 0:01:31.3]} 36. Bg3 {[%clk 0:00:19.7]}
36... Ra1 {[%clk 0:01:31.5]} 37. Rxa1 {[%clk 0:00:19.6]} 37... Qxa1+ {[%clk
0:01:31.9]} 38. Kh2 {[%clk 0:00:20.5]} 38... Qc3 {[%clk 0:01:29.8]} 39. h4
{[%clk 0:00:16.4]} 39... Nde7 {[%clk 0:01:22.5]} 40. h5 {[%clk 0:00:14.5]} 40...
Kh7 {[%clk 0:01:19.2]} 41. Bf4 {[%clk 0:00:14.3]} 41... Qc2 {[%clk 0:01:13.1]}
42. f3 {[%clk 0:00:13.4]} 42... Nd5 {[%clk 0:01:09.1]} 43. Bg5 {[%clk
0:00:13.1]} 43... Nde3 {[%clk 0:01:05.7]} 44. Bxe3 {[%clk 0:00:13.1]} 44... Nxe3
{[%clk 0:01:05.9]} 45. Qg5 {[%clk 0:00:13.5]} 45... Nf5 {[%clk 0:01:02.3]} 46.
Kh3 {[%clk 0:00:12.2]} 46... Qd1 {[%clk 0:01:00.4]} 47. Kh2 {[%clk 0:00:10.1]}
47... Qd4 {[%clk 0:00:59.7]} 48. Bf1 {[%clk 0:00:04.1]} 48... Qxe5+ {[%clk
0:00:57.8]} 49. g3 {[%clk 0:00:04.3]} 49... Qe1 {[%clk 0:00:56.1]} 50. Bg2
{[%clk 0:00:04.8]} 50... Qf2 {[%clk 0:00:53.8]} 51. Qf4 {[%clk 0:00:04.3]} 51...
c5 {[%clk 0:00:52.4]} 52. g4 {[%clk 0:00:04.5]} 52... Ne3 {[%clk 0:00:49.6]} 53.
Qe4+ {[%clk 0:00:01.6]} 53... f5 {[%clk 0:00:47.3]} 0-1